Cogmind - Beta 15 @@@ ROGUE MODE // 2025.06.29 @ 20:20:38 Player: Waste Result: Core destroyed Performance ------------- Evolutions (4) 2000 Regions Visited (8) 1600 Robots Destroyed (24) 120 Value Destroyed (1252) 1252 Prototype IDs (24) 480 Alien Tech Used (0) 0 Bonus (1100) 1100 TOTAL SCORE: 6552 Bonus ------- Registered with UFD 300 Met Optimus in HQ 500 Met Data Miner 300 Cogmind --------- Core Integrity 0/850 Matter 300/300 Energy 380/380 System Corruption 15% Temperature Cool (0) Movement Walking (260) Ox2 Location -5/Proximity Caves Parts ------- > --- POWER (1) -------- Cooled Antimatter Reactor > --- PROPULSION (6) --- Enhanced Flexi-carbon Leg > --- UTILITY (6) ------ High-capacity Storage Unit Improved Sensor Array Improved Melee Analysis Suite Advanced Melee Analysis Suite Experimental Core Analyzer Layered Medium Armor Plating > --- WEAPON (2) ------- Companion Sword > --- INVENTORY (20) --- Angular Momentum Engine Improved Hover Unit Gravmag Array Makeshift Hover Unit Experimental Core Analyzer Experimental Core Analyzer Improved Medium Armor Plating Improved Medium Armor Plating Enhanced Scrap Shield Experimental Thermal Shield Deep Network Scanner Quantum Router Improved System Restoration Module Long-range Phase Cannon Long-range Phase Cannon Proton Missile Launcher Proton Missile Launcher Mini Grenade Launcher Peak State ------------ > --- POWER ------------ Improved Deuterium Engine > --- PROPULSION ------- Carbon-fiber Leg Carbon-fiber Leg Makeshift Leg Enhanced Flexi-carbon Leg > --- UTILITY ---------- High-capacity Storage Unit Improved Melee Analysis Suite Advanced Melee Analysis Suite Experimental Core Analyzer Layered Medium Armor Plating Experimental Thermal Shield > --- WEAPON ----------- Long-range Phase Cannon Companion Sword > --- INVENTORY -------- Angular Momentum Engine Improved Hover Unit Improved Hover Unit Improved Hover Unit Gravmag Array Makeshift Hover Unit Experimental Core Analyzer Improved Medium Armor Plating Improved Medium Armor Plating Enhanced Scrap Shield Deep Network Scanner Quantum Router Improved System Restoration Module Heavy Plasma Cannon Neutron Cannon Proton Missile Launcher Proton Missile Launcher Mini Grenade Launcher [Rating: 79] Favorites ----------- Power Light Fission Core Engine Ion Engine Power Core Light Fission Core Reactor Cooled Antimatter Reactor Propulsion Carbon-fiber Leg Treads Advanced Treads Leg Carbon-fiber Leg Utility High-capacity Storage Unit Device Improved Sensor Array Storage High-capacity Storage Unit Processor Advanced Melee Analysis Suite Protection Layered Light Armor Plating Weapon Companion Sword Energy Gun Medium Laser Energy Cannon Particle Cannon Ballistic Gun Subdweller Machine Gun Launcher Proton Missile Launcher Slashing Weapon Companion Sword Build | -11 -10 -10 -9 -6 -6 -6 -6 -5 ------- Run | Yrd Mat Sub Scr Fac Low Low Dat Pro Slots Evolved 8 | . . . . 8 . . . . Power . | . . . . . . . . . Propulsion 4 | . . . . 4 . . . . Utility 4 | . . . . 4 . . . . Weapon . | . . . . . . . . . Parts Attached 58 | . . 3 10 12 20 . 9 4 Power 6 | . . 1 1 . 2 . 1 1 Engine 4 | . . 1 . . 2 . 1 . Core 1 | . . . 1 . . . . . Reactor 1 | . . . . . . . . 1 Propulsion 17 | . . . 3 6 4 . 4 . Treads 3 | . . . 3 . . . . . Leg 14 | . . . . 6 4 . 4 . Wheel . | . . . . . . . . . Hover . | . . . . . . . . . Flight . | . . . . . . . . . Utility 25 | . . 1 3 6 10 . 4 1 Device 8 | . . 1 . 3 2 . 2 . Storage 2 | . . . 2 . . . . . Processor 6 | . . . . 2 2 . 1 1 Hackware . | . . . . . . . . . Protection 9 | . . . 1 1 6 . 1 . Artifact . | . . . . . . . . . Weapon 10 | . . 1 3 . 4 . . 2 Energy Gun . | . . . . . . . . . Energy Cannon 4 | . . . 2 . . . . 2 Ballistic Gun 1 | . . 1 . . . . . . Ballistic Cannon . | . . . . . . . . . Launcher 4 | . . . . . 4 . . . Special Weapon . | . . . . . . . . . Impact Weapon . | . . . . . . . . . Slashing Weapon 1 | . . . 1 . . . . . Piercing Weapon . | . . . . . . . . . Special Melee Weapon . | . . . . . . . . . Unidentified Prototypes 7 | . . . 1 . 1 . 2 3 Corrupted Parts 1 | . . . . . 1 . . . System Corruption 10 | . . . . . 10 . . . Parts Lost 20 | . . . . 3 5 . 9 3 Power 2 | . . . . . 1 . 1 . Propulsion 11 | . . . . 1 1 . 6 3 Utility 6 | . . . . 2 2 . 2 . Weapon 1 | . . . . . 1 . . . Highest Loss Streak 9 | . . . . 3 4 . 9 3 To Critical Strikes . | . . . . . . . . . Average Backups 14 | . 6 7 13 17 18 18 18 17 Power 1 | . 1 1 1 1 . . 1 1 Propulsion 4 | . 4 3 4 3 3 5 5 4 Utility 6 | . . . 4 10 8 8 8 6 Weapon 3 | . 1 1 2 3 4 4 3 4 Tool/Special . | . . . . . . . . . Unused Backups 27 | . . . 10 1 1 2 1 12 Power 2 | . . . . . 1 . . 1 Propulsion 9 | . . . 4 . . . . 5 Utility 11 | . . . 3 . . 2 1 5 Weapon 5 | . . . 3 1 . . . 1 Tool/Special . | . . . . . . . . . Average Slot Usage (%) 89 | . 85 96 91 84 91 93 69 80 Engine 4 | . 14 14 3 . 5 6 3 5 Core 5 | . . . 10 6 . . . . Treads 8 | . . . 17 . . . . . Leg 22 | . 28 28 10 33 39 40 23 26 Device 4 | . . 10 . 12 5 6 4 12 Storage 10 | . 14 14 14 6 6 6 6 6 Processor 6 | . . . . 11 13 20 19 13 Protection 10 | . . . 13 6 11 6 3 6 Energy Gun 1 | . 14 14 . . . . . . Energy Cannon 2 | . . . 5 . . . . . Ballistic Gun 3 | . 14 14 6 . . . . . Slashing Weapon 6 | . . . 7 6 5 6 6 6 Peak Build Rating 79 | . 6 11 27 49 59 58 68 79 Average Rating 35 | . 6 9 20 44 54 56 49 64 On Entrance 30 | 6 6 6 11 25 40 56 58 68 Naked Turns . | . . . . . . . . . Heaviest Build 85 | 13 13 17 65 63 85 65 71 74 Greatest Support 93 | 20 20 20 45 79 93 93 93 78 Greatest Overweight (x) 14 | . . . 1 1 1 . 14 . Average Overweight (x) . | . . . . . . . . . Largest Inventory Capacity 20 | . 8 8 20 20 20 20 20 20 Average Capacity 17 | . 8 8 15 20 20 20 20 20 Most Carried 20 | . 6 8 20 20 20 20 20 20 Average Carried 15 | . 6 7 13 17 19 19 19 19 Final Capacity 20 | 8 8 8 20 20 20 20 20 20 Final Carried 20 | 6 6 8 20 18 18 20 19 20 Class Distribution -------------------- 54% | Mutant 25% | Scavenger-Mutant 19% | Derelict-Mutant Dominant Class ---------------- Mutant | -10/Materials Mutant | -10/Subcaves Mutant | -9/Scraptown Derelict-Mutant | -6/Factory Scavenger-Mutant | -6/Lower Caves Derelict-Mutant | -6/Lower Caves Derelict-Mutant | -6/Data Miner Scavenger-Mutant | -5/Proximity Caves Resources | -11 -10 -10 -9 -6 -6 -6 -6 -5 ----------- Run | Yrd Mat Sub Scr Fac Low Low Dat Pro Matter Collected 1215 | 200 . 35 80 . 553 83 115 149 Remotely . | . . . . . . . . . Salvage Created 1468 | . . 33 . . 907 . 303 225 Parts 38 | . . 2 . . 28 . 6 2 Haulers Intercepted . | . . . . . . . . . Recyclers Shooed . | . . . . . . . . . Parts Field Recycled . | . . . . . . . . . Retrieved Matter . | . . . . . . . . . Parts Self-Destructed 13 | . . 6 . . 6 . . 1 Prevented 5 | . . . . . 5 . . . Kills | -11 -10 -10 -9 -6 -6 -6 -6 -5 ------- Run | Yrd Mat Sub Scr Fac Low Low Dat Pro Combat Hostiles Destroyed 23 | . . 1 . . 18 . 3 1 Melee 13 | . . . . . 9 . 3 1 Guns 1 | . . 1 . . . . . . AOE 9 | . . . . . 9 . . . Classes Destroyed 7 | . . 1 . . 6 . . . Swarmer 3 | . . . . . 3 . . . Grunt 5 | . . . . . 4 . . 1 Brawler 2 | . . . . . 2 . . . Duelist 3 | . . . . . 3 . . . Sentry 1 | . . . . . 1 . . . Programmer 1 | . . . . . 1 . . . Enhanced Grunt 3 | . . . . . . . 3 . Subdweller 1 | . . 1 . . . . . . Thug 4 | . . . . . 4 . . . Best Kill Streak 9 | . . 1 . . 9 . 1 1 Combat Bots Only 9 | . . 1 . . 9 . 1 1 Max Kills in Single Turn 2 | . . 1 . . 2 . 1 1 Gunslinging . | . . . . . . . . . Exploded 2 | . . . . . 2 . . . Melee 1 | . . . . . 1 . 1 1 Uniques/NPCs Destroyed 1 | . . . . . . . 1 . Data Miner (-6/Data Miner) Combat | -11 -10 -10 -9 -6 -6 -6 -6 -5 -------- Run | Yrd Mat Sub Scr Fac Low Low Dat Pro Hostile Shots Fired 200 | . . 6 . 52 67 . 40 35 Missed 52 | . . 1 . 21 15 . 6 9 Hits 148 | . . 5 . 31 52 . 34 26 Melee 7 | . . . . . 7 . . . Projectile 141 | . . 5 . 31 45 . 34 26 Critical Strikes 8 | . . . . . 4 . . 4 Damage Taken 3760 | . . 94 . 431 1199 . 1602 434 Core 851 | . . . . 77 110 . 640 24 Absorbed by Shields . | . . . . . . . . . Core Remaining (%) 100 | 100 . . 100 . . . . . Volleys Fired 20 | . . 5 . . 14 . . 1 Largest 2 | . . 2 . . 2 . . 1 Hottest 90 | . . 70 . . 69 . . 90 Shots Fired 27 | . . 10 . . 16 . . 1 Gun 10 | . . 10 . . . . . . Cannon 1 | . . . . . . . . 1 Launcher 16 | . . . . . 16 . . . Special . | . . . . . . . . . Kinetic 5 | . . 5 . . . . . . Thermal 6 | . . 5 . . . . . 1 Explosive 11 | . . . . . 11 . . . Electromagnetic 5 | . . . . . 5 . . . Robot Hit Streak 15 | . . 9 . . 15 . . . Robot Miss Streak . | . . . . . . . . . Penetration Max . | . . . . . . . . . Secondary Targets . | . . . . . . . . . Shots Hit Robots 74 | . . 9 . 3 32 . 26 4 Core Hits 50 | . . 3 . . 33 . 12 2 Critical Kills . | . . . . . . . . . Critical Parts Destroyed . | . . . . . . . . . Critical Strikes 5 | . . 1 . . 2 . 2 . Burn 1 | . . 1 . . . . . . Melee Attacks 90 | . . . . 12 28 1 32 17 Impact . | . . . . . . . . . Slashing 90 | . . . . 12 28 1 32 17 Piercing . | . . . . . . . . . Sneak Attacks 1 | . . . . . . . 1 . Combat Hostiles . | . . . . . . . . . Follow-up Attacks 1 | . . . . . . . . 1 Damage Inflicted 4319 | . . 93 . 130 2592 . 1257 247 Guns 93 | . . 93 . . . . . . Cannons . | . . . . . . . . . Explosions 1543 | . . . . . 1543 . . . Melee 2683 | . . . . 130 1049 . 1257 247 Ramming . | . . . . . . . . . Kinetic 31 | . . 31 . . . . . . Thermal 280 | . . 62 . . 218 . . . Explosive 865 | . . . . . 865 . . . Electromagnetic 460 | . . . . . 460 . . . Impact . | . . . . . . . . . Slashing 2683 | . . . . 130 1049 . 1257 247 Piercing . | . . . . . . . . . Highest Corruption 15 | . . . . 1 15 15 15 15 Average Corruption 10 | . . . . 1 4 15 15 15 Corruption Purged . | . . . . . . . . . Corruption Blocked . | . . . . . . . . . Effects 85 | . . . . . 16 26 13 30 Message Errors 16 | . . . . . 5 4 2 5 Matter Fused 32 | . . . . . 4 14 2 12 Heat Flow Errors 11 | . . . . . 3 2 3 3 Energy Discharges 7 | . . . . . . 3 4 . Parts Rejected 2 | . . . . . 1 . 1 . Data Loss (minor) 11 | . . . . . 3 2 . 6 Data Loss (major) 2 | . . . . . . 1 1 . Alerts 4 | . . . . . . . . 4 Overload Shots . | . . . . . . . . . Overflow Damage 92 | . . . . 1 47 . 12 32 Projectiles . | . . . . . . . . . Explosions 22 | . . . . . 22 . . . Melee 70 | . . . . 1 25 . 12 32 Knockbacks . | . . . . . . . . . Impact . | . . . . . . . . . Kinetic . | . . . . . . . . . Secondary . | . . . . . . . . . Self-Inflicted Damage 34 | . . . . . 34 . . . Shots 3 | . . . . . 3 . . . Rammed . | . . . . . . . . . Targets Rammed . | . . . . . . . . . Kicked . | . . . . . . . . . Crushed . | . . . . . . . . . Highest Temperature 264 | . . . . . 255 264 206 189 Average Temperature 88 | . . . . . 73 120 105 79 Received Heat Transfer 486 | . . . . 18 342 . . 126 Siege Activations . | . . . . . . . . . Martial Activations . | . . . . . . . . . Shielding Activations . | . . . . . . . . . Robots Disrupted 1 | . . . . 1 . . . . Combat Hostiles 1 | . . . . 1 . . . . Robots Corrupted . | . . . . . . . . . Combat Hostiles . | . . . . . . . . . Parts Fried . | . . . . . . . . . Impact Corruptions . | . . . . . . . . . Robots Melted . | . . . . . . . . . Combat Hostiles . | . . . . . . . . . Parts Melted 1 | . . 1 . . . . . . Heat Transferred 559 | . . 259 . . 300 . . . Parts Sabotaged . | . . . . . . . . . Parts Stolen . | . . . . . . . . . Parts Stripped . | . . . . . . . . . Power Chain Reactions 2 | . . . . . 2 . . . Alert | -11 -10 -10 -9 -6 -6 -6 -6 -5 ------- Run | Yrd Mat Sub Scr Fac Low Low Dat Pro Maximum Alert Level . | . . . . . . . . . Low Security (%) 100 | . 100 . . 100 . . . . Level 1 . | . . . . . . . . . Level 2 . | . . . . . . . . . Level 3 . | . . . . . . . . . Level 4 . | . . . . . . . . . Level 5 . | . . . . . . . . . High Security . | . . . . . . . . . Max Security . | . . . . . . . . . Peak Influence 15 | . 6 . . 15 . . . . Initial . | . . . . . . . . . Average . | . . . . . . . . . Influence Increases 399 | . 6 . . 35 305 . 23 30 Destroy 0b10 Robot/C 320 | . . . . . 280 . 20 20 Destroy 0b10 Robot/NC 15 | . . . . . 5 . . 10 Destroy Leader 20 | . . . . . 20 . . . Allied During Kill 3 | . . . . . . . 3 . Successful Hack 18 | . 6 . . 12 . . . . Disable Machine 15 | . . . . 15 . . . . Destroy Structure 8 | . . . . 8 . . . . Influence Decreases 399 | . 6 . . 35 200 105 23 30 Entered New Map 21 | . . . . . . 21 . . Time Decay 294 | . 6 . . 34 150 84 10 10 Lost Part 70 | . . . . . 50 . . 20 Lost Ally 14 | . . . . 1 . . 13 . Squads Dispatched 3 | . . . . 3 . . . . Investigation 2 | . . . . 2 . . . . Extermination 1 | . . . . 1 . . . . Reinforcement . | . . . . . . . . . Assault . | . . . . . . . . . Garrison . | . . . . . . . . . Intercept . | . . . . . . . . . Searches Triggered . | . . . . . . . . . Construction Impeded . | . . . . . . . . . Haulers Reinforced . | . . . . . . . . . Active Scanning Responses . | . . . . . . . . . Cargo Convoy Interrupts . | . . . . . . . . . Stealth | -11 -10 -10 -9 -6 -6 -6 -6 -5 --------- Run | Yrd Mat Sub Scr Fac Low Low Dat Pro Distress Signals . | . . . . . . . . . Communications Jammed . | . . . . . . . . . Distress Signals . | . . . . . . . . . Times Spotted 37 | . . 1 . 6 19 . 4 7 Peak Tracking Total 9 | . . 1 . 5 9 . 4 7 Tactical Retreats . | . . . . . . . . . Traps | -11 -10 -10 -9 -6 -6 -6 -6 -5 ------- Run | Yrd Mat Sub Scr Fac Low Low Dat Pro Traps Triggered . | . . . . . . . . . Indirectly . | . . . . . . . . . Trap Hack Attempts . | . . . . . . . . . Triggered . | . . . . . . . . . Disarmed . | . . . . . . . . . Reprogrammed . | . . . . . . . . . Reused . | . . . . . . . . . Traps Extracted . | . . . . . . . . . Installed . | . . . . . . . . . Triggered . | . . . . . . . . . Machines | -11 -10 -10 -9 -6 -6 -6 -6 -5 ---------- Run | Yrd Mat Sub Scr Fac Low Low Dat Pro Machines Disabled 2 | . . . . 1 . . 1 . Max in Single Turn 1 | . . . . 1 . . 1 . Garrison Access 1 | . . . . 1 . . . . Machines Repaired . | . . . . . . . . . Machines Dismantled . | . . . . . . . . . Machines Sabotaged . | . . . . . . . . . Overloaded Fab Kills . | . . . . . . . . . Hacking | -11 -10 -10 -9 -6 -6 -6 -6 -5 --------- Run | Yrd Mat Sub Scr Fac Low Low Dat Pro Machines Accessed 14 | . 1 1 5 4 . . 3 . Terminals 1 | . 1 . . . . . . . Fabricators . | . . . . . . . . . Repair Stations 1 | . . . . 1 . . . . Recycling Units 2 | . . . . 2 . . . . Scanalyzers . | . . . . . . . . . Garrison Access 1 | . . . . 1 . . . . Total Hacks 47 | . 5 5 8 8 . . 21 . Successful 40 | . 2 5 8 4 . . 21 . Failed 7 | . 3 . . 4 . . . . Catastrophic 2 | . 1 . . 1 . . . . Database Lockouts . | . . . . . . . . . Manual 8 | . 5 . . 3 . . . . Terminals 5 | . 5 . . . . . . . Fabricators . | . . . . . . . . . Repair Stations 4 | . . . . 4 . . . . Recycling Units 3 | . . . . 3 . . . . Scanalyzers . | . . . . . . . . . Garrison Access 1 | . . . . 1 . . . . Terminal Hacks 36 | . 2 5 8 . . . 21 . Record 17 | . . 5 6 . . . 6 . Part Schematic 8 | . . . . . . . 8 . Robot Schematic 4 | . . . . . . . 4 . Robot Analysis 2 | . 2 . . . . . . . Prototype ID Bank 3 | . . . . . . . 3 . Open Door 1 | . . . 1 . . . . . Proto ID Catalog 1 | . . . 1 . . . . . Fabricator Hacks . | . . . . . . . . . Repair Station Hacks 1 | . . . . 1 . . . . Scan Component 1 | . . . . 1 . . . . Recycling Unit Hacks . | . . . . . . . . . Scanalyzer . | . . . . . . . . . Garrison Access Hacks 1 | . . . . 1 . . . . Seal Access 1 | . . . . 1 . . . . Unauthorized Hacks 2 | . . . . 2 . . . . Terminals . | . . . . . . . . . Fabricators . | . . . . . . . . . Repair Stations . | . . . . . . . . . Recycling Units 2 | . . . . 2 . . . . Fedlink 2 | . . . . 2 . . . . Scanalyzers . | . . . . . . . . . Garrison Access . | . . . . . . . . . Data Cores Recovered . | . . . . . . . . . Used . | . . . . . . . . . Hacking Detections 3 | . 1 . . 2 . . . . Full Trace Events 1 | . 1 . . . . . . . Feedback Events . | . . . . . . . . . Feedback Blocked . | . . . . . . . . . Robot Schematics Acquired 4 | . . . . . . . 4 . Robots Built . | . . . . . . . . . Authchips . | . . . . . . . . . Time . | . . . . . . . . . Total Robot Build Rating . | . . . . . . . . . Part Schematics Acquired 8 | . . . . . . . 8 . Parts Built . | . . . . . . . . . Authchips . | . . . . . . . . . Time . | . . . . . . . . . Total Part Build Rating . | . . . . . . . . . Parts Repaired . | . . . . . . . . . Time . | . . . . . . . . . Parts Recycled . | . . . . . . . . . Recycled Matter . | . . . . . . . . . Retrieved Matter . | . . . . . . . . . Retrieved Components . | . . . . . . . . . Parts Scanalyzed . | . . . . . . . . . Part Schematics Acquired . | . . . . . . . . . Parts Damaged . | . . . . . . . . . Bothacking | -11 -10 -10 -9 -6 -6 -6 -6 -5 ------------ Run | Yrd Mat Sub Scr Fac Low Low Dat Pro Used RIF Installer . | . . . . . . . . . Robots Hacked . | . . . . . . . . . Non-combat . | . . . . . . . . . Combat . | . . . . . . . . . Robot Hacks Applied . | . . . . . . . . . Relay Couplers Released . | . . . . . . . . . Fabnet Peak Effective % . | . . . . . . . . . Robots Rewired 3 | . . . . 1 2 . . . Allies Hacked . | . . . . . . . . . Hacks Repelled . | . . . . . . . . . Allies | -11 -10 -10 -9 -6 -6 -6 -6 -5 -------- Run | Yrd Mat Sub Scr Fac Low Low Dat Pro Total Allies 3 | . . . . 1 2 . . . Largest Group 2 | . . . . 1 2 2 2 . Highest-Rated Group 62 | . . . . 36 62 62 62 . Highest-Rated Ally 36 | . . . . 36 32 32 32 . Total Orders . | . . . . . . . . . Ally Attacks 5 | . . . . 3 . . 2 . Total Damage 102 | . . . . 55 . . 47 . Kills . | . . . . . . . . . Allies Corrupted . | . . . . . . . . . Allies Melted . | . . . . . . . . . Intel | -11 -10 -10 -9 -6 -6 -6 -6 -5 ------- Run | Yrd Mat Sub Scr Fac Low Low Dat Pro Active Infowar (turns) 3127 | . . . . 369 1187 674 108 789 Sensors 3127 | . . . . 369 1187 674 108 789 Robot Analysis Total 2 | . 2 . . . . . . . Derelict Logs Recovered 9 | . . . 2 . 2 2 . 3 Drone Launches . | . . . . . . . . . Drone Recoveries . | . . . . . . . . . Exploration | -11 -10 -10 -9 -6 -6 -6 -6 -5 ------------- Run | Yrd Mat Sub Scr Fac Low Low Dat Pro Turns Passed 7708 | . 48 409 3711 403 1303 674 348 812 Spaces Moved 4519 | 1 41 297 1750 222 913 544 158 593 Core 5 | . . . . . . . 5 . Treads 1009 | . . . 1009 . . . . . Legs 3505 | 1 41 297 741 222 913 544 153 593 Wheels . | . . . . . . . . . Hover . | . . . . . . . . . Flight . | . . . . . . . . . Fastest Speed 120 | 120 120 120 120 120 121 121 120 125 Average Speed 157 | 120 120 120 209 141 121 121 148 125 Slowest Speed 750 | 120 120 120 232 190 192 121 750 125 Overloaded Moves . | . . . . . . . . . Propulsion Burnouts . | . . . . . . . . . Robots Hopped . | . . . . . . . . . Potential Cave-ins . | . . . . . . . . . Cave-ins Triggered . | . . . . . . . . . Exploration Rate (%) 49 | 1 12 22 91 7 98 70 79 62 Regions Visited 8 Branch Regions 6 Pre-discovered Areas 4 | . . . . 1 . 1 1 1 Known Exits Taken 1 | . . . . 1 . . . . Unknown Exits Taken 7 | 1 1 1 1 . 1 1 1 . Scrap Searched 20 | . . . 10 . 5 4 . 1 Spaces Dug 35 | . . . . 7 19 1 . 8 Terrain Destroyed 99 | . . . . 7 83 1 . 8 Melee 15 | . . . . 7 . 1 . 7 Projectile 1 | . . . . . . . . 1 AOE 83 | . . . . . 83 . . . Terrain Rammed . | . . . . . . . . . Walls Destroyed . | . . . . . . . . . Machines Disabled . | . . . . . . . . . Actions | -11 -10 -10 -9 -6 -6 -6 -6 -5 --------- Run | Yrd Mat Sub Scr Fac Low Low Dat Pro Total 4938 | . 40 340 1793 293 1049 560 224 639 Wait 123 | . . 33 . 31 28 6 13 12 Move 4511 | . 40 296 1749 221 912 543 157 593 Hop . | . . . . . . . . . Pick Up 55 | . . 1 21 9 9 6 5 4 Fast Attach 17 | . . 1 1 2 5 . 7 1 Attach 27 | . . . 1 9 13 . 3 1 Detach 9 | . . . 1 . 4 . 1 3 Swap 27 | . . 2 8 1 10 . 2 4 Drop 39 | . . 2 12 5 8 4 4 4 Fire 20 | . . 5 . . 14 . . 1 Melee 89 | . . . . 12 28 1 32 16 Ram . | . . . . . . . . . Kick . | . . . . . . . . . Crush . | . . . . . . . . . Escape Stasis . | . . . . . . . . . Rewire 21 | . . . . 3 18 . . . Trap . | . . . . . . . . . Miscellaneous . | . . . . . . . . . Route ------- -11/Scrapyard -10/Materials -10/Subcaves (discovered 2 exits: Rec / *Scr) -9/Scraptown (discovered 2 exits: *Fac x2) -6/Factory -6/Lower Caves -6/Lower Caves (discovered 2 exits: [*Fac] / *Dat) -6/Data Miner -5/Proximity Caves History --------- Turn | Location | Event 1 | -11/Scrapyard | Discovered new exit (range 0) 1 | -11/Scrapyard | Entered Materials 2 | -10/Materials | Met a group of wandering Federalists 47 | -10/Materials | Discovered new exit (range 3) 49 | -10/Materials | Entered Subcaves 49 | -10/Subcaves | Accompanied by 3 allies 50 | -10/Subcaves | Continued accompanying wandering Federalists (4) 50 | -10/Subcaves | Approached by a straggling Scientist 128 | -10/Subcaves | Lost 3 allies 165 | -10/Subcaves | Visited Clippyterm 169 | -10/Subcaves | Identified exit to Recycling 169 | -10/Subcaves | Learned Factory emergency access door positions 230 | -10/Subcaves | A swath of the cavern ceiling suddenly collapsed 280 | -10/Subcaves | Scientist uncovered a shortcut to Scraptown 306 | -10/Subcaves | Build established: Mutant 367 | -10/Subcaves | Shifting Twisted Machinery released Sub. Monowheel 385 | -10/Subcaves | Shifting Twisted Machinery released Scrap Shield 391 | -10/Subcaves | Shifting Twisted Machinery released Sub. Machine Gun 458 | -10/Subcaves | Entered Scraptown 750 | -9/Scraptown | Scanned Subdweller tech in exchange for log data 756 | -9/Scraptown | Learned location of 1 exit from Factory 758 | -9/Scraptown | Learned Factory terminal intel 897 | -9/Scraptown | Discovered new exit (range 11) 1032 | -9/Scraptown | Visited Cyclists 1058 | -9/Scraptown | Heard Great Nut preacher, LISTEN AND RECITE! 1129 | -9/Scraptown | Visited UFD Registry 1129 | -9/Scraptown | Registered with UFD as "Megatorch" 1172 | -9/Scraptown | Visited Cave Peace 1237 | -9/Scraptown | Entered Cyclist Reading Room 1277 | -9/Scraptown | Visited IN-MT5's Study 1674 | -9/Scraptown | Visited Comm Corps 1767 | -9/Scraptown | Visited Bundlers 2048 | -9/Scraptown | Visited Sword Containment 2129 | -9/Scraptown | Visited Chapter 10 2166 | -9/Scraptown | Received an X-ray algorithm 2178 | -9/Scraptown | Visited Abandonware Association 2206 | -9/Scraptown | Learned abandonware demo "POISON.EXE" 2206 | -9/Scraptown | Learned abandonware demo "MELTYB.EXE" 2298 | -9/Scraptown | Delivered Scrap Shield to a Scientist 2511 | -9/Scraptown | Visited DA-N13 Charitable Foundation 2535 | -9/Scraptown | Found DCF Scrap (31 items) 3240 | -9/Scraptown | Visited Scrapoid Pod Storage 3281 | -9/Scraptown | Visited Science Testing Area 3311 | -9/Scraptown | Visited Scrap Suit Storage 3360 | -9/Scraptown | Visited Junk Repository 3488 | -9/Scraptown | Visited Science Guys 3690 | -9/Scraptown | Discovered new exit (range 3) 4032 | -9/Scraptown | Met Optimus 4032 | -9/Scraptown | Accepted into 0bPrime 4169 | -9/Scraptown | Entered Factory 4169 | -6/Factory | Evolved 8 slots: Propulsion x4, Utility x4 4170 | -6/Factory | Identified exit to Lower Caves 4172 | -6/Factory | Loaded intel: 26 terminal locations 4213 | -6/Factory | Loaded intel: 8 recycling unit locations 4314 | -6/Factory | Learned location of Protoforge (-3) 4466 | -6/Factory | Build established: Derelict-Mutant 4572 | -6/Factory | Entered Lower Caves 4574 | -6/Lower Caves | UFD Scientist delivered a prototype 4576 | -6/Lower Caves | Found Prototype Protection 4576 | -6/Lower Caves | Identified Enh. Scrap Shield 4603 | -6/Lower Caves | Lost 3 parts (1n2u) 4604 | -6/Lower Caves | Ambushed by wild Derelicts 4837 | -6/Lower Caves | Learned Factory stockpile data 4931 | -6/Lower Caves | Build established: Scavenger-Mutant 5547 | -6/Lower Caves | Attracted the attention of an 0b10 outpost 5620 | -6/Lower Caves | Destroyed 9 combat bots 5624 | -6/Lower Caves | System corruption reached 10% 5627 | -6/Lower Caves | Lost 4 parts (1p1n2u) 5838 | -6/Lower Caves | Discovered new exit (range 9) 5875 | -6/Lower Caves | Entered another Lower Caves area 5875 | -6/Lower Caves | Accompanied by 2 allies 5988 | -6/Lower Caves | Discovered new exit (range 10) 6013 | -6/Lower Caves | Build established: Derelict-Mutant 6132 | -6/Lower Caves | Learned 12 Factory zone layouts 6279 | -6/Lower Caves | Encountered a Warlord checkpoint 6349 | -6/Lower Caves | Discovered new exit (range 15) 6398 | -6/Lower Caves | Found DCF Scrap (13 items) 6549 | -6/Lower Caves | Entered Data Miner 6549 | -6/Data Miner | Accompanied by 2 allies 6549 | -6/Data Miner | Discovered new exit (range 6) 6572 | -6/Data Miner | Met Data Miner 6610 | -6/Data Miner | Learned location of Section 7 (-3) 6610 | -6/Data Miner | Acquired the access code to Warlord's prototype stash 6621 | -6/Data Miner | Received God Mode back door access code from Data Miner 6642 | -6/Data Miner | Destroyed Data Miner 6650 | -6/Data Miner | Found Prototype Hackware 6652 | -6/Data Miner | Found Prototype Hackware 6660 | -6/Data Miner | Data Conduit disabled 6709 | -6/Data Miner | Core integrity fell below 50% 6742 | -6/Data Miner | Core integrity fell below 20% 6770 | -6/Data Miner | Lost 9 parts (1p6n2u) 6838 | -6/Data Miner | Found Prototype Device 6838 | -6/Data Miner | Identified Exp. Thermal Shield 6897 | -6/Data Miner | Entered Proximity Caves 7080 | -5/Proximity Caves | Learned location of Warlord (-5) 7093 | -5/Proximity Caves | Build established: Scavenger-Mutant 7116 | -5/Proximity Caves | Learned location of 1 exit from Factory 7611 | -5/Proximity Caves | Learned 4 Factory zone layouts 7616 | -5/Proximity Caves | Found Prototype Processor 7616 | -5/Proximity Caves | Identified Exp. Core Analyzer 7619 | -5/Proximity Caves | Found Exp. Core Analyzer 7633 | -5/Proximity Caves | Found Exp. Core Analyzer 7685 | -5/Proximity Caves | Attracted the attention of an 0b10 checkpoint 7709 | -5/Proximity Caves | Core destroyed Last Messages --------------- 07634_ Acquired 29 matter. 07637_ Acquired Imp. Sensor Array. 07638_ Dropped Imp. Hover Unit. 07639_ Acquired Exp. Thermal Shield. 07641_ Dropped Hvy. Plasma Cannon. 07642_ Acquired Lrn. Phase Cannon. 07643_ Acquired 11 matter. 07648_ System corrupted: IFF burst signal emitted. 07664_ System corrupted: Matter fused (-9). 07681_ System corrupted: Component data lost. 07684_ Slug penetrates Wall. 07685_ Y-64 Sentinel: "INTERCEPTING UNREGISTERED DERELICT." 07685_ Critical hit (Burn: +37). 07701_ Mak. Leg destroyed. 07701_ Companion Sword surprise attacks G-50 Soldier. 07701_ G-50 Soldier destroyed. 07702_ 9NCJ6VQH WMEAMI7XNI87 07705_ Hvy. Laser fries itself beyond repair. 07707_ Carbon-fiber Leg destroyed. 07708_ Critical hit (Burn: +37). Map ----- +----------------------------------------------------+ | | | | | | | | | | | ?????????????????????????????????????????????????? | | ?????????????????????????????????????????????????? | | ?????????????????????????????????????????????????? | | ?????????????????????????????????????????????????? | | ?????????????????????????????????????????????????? | | ?????????????????????????????????????????????????? | | ?????????????????????????????????????????????????? | | ?????????????????????????????????????????????????? | | ?????????????????????????????????????????????????? | | ?????????????????????????????????????????????????? | | ?????????????????????????????????????????????????? | | ?????????????????????????????????????????????????? | | ?????????????????????????????????????????????????? | | ?????????????????????????????????????????????????? | | ????????????????????????????##???????????????????? | | ??#######??????###?????????# #???????????????????? | | ?## ##??#### ##??????## ####????????????????? | | ## #?## ##?????# ##???????????????? | | # #?# ####### #???????????????? | | ## #?# g s# #??????????????? | | == ##?# s @# #?????????????? | | # #??##### "" "g"#? ??????????? | | *# # ##?????# """ ="#?? #?????????? | | # # ##?#### "" "" #?? # #?????????? | | ### ### ## " g #???????????? | | ?# "# """" ??????????? | | ?# #### """"" ??????????? | | ?# ## #####??# "" ## ??????????? | | ####?# ###### #?# ???????????? | | # #?## ###### #??# ???????????? | | ### #????? ??? ####?????????????? | | ## ###### #????? ???? ?????????????????? | | ## #????? ?????? ??????????????????????? | | ###????? ?????? ??????????????????????? | | ##???????# ?????? ??????????????????????? | | #?????????#?????????????????????????????? | | ##???????????????????????????????????????? | | ######????????????????????????????????????????? | | #?????????????????????????????????????????????? | | ###?????????????????????????????????????????????? | | ##???????????????????????????????????????????????? | | #????????????????????????????????????????????????? | | #########????????????????????????????????????????? | | #????????????????????????????????????????? | | #????????????????????????????????????????? | +----------------------------------------------------+ Best States ------------- Heat Dissipation 39 Energy Generation 23 Energy Capacity 380 Matter Stores 300 Matter Capacity 300 Sight Range 16 Robot Scan Range 15 Terrain Scan Density 10 Corruption Block 5 Armor Coverage 900 Resistance: TH 30 Evasion (%) 65 Melee Accuracy 14 Core Analysis 8 Armor Integrity Analysis 30 Recoil Reduction 2 Force Boost 20 Item Schematics ----------------- Combat Drone Bay | -6/Data Miner | Free Lgt. Regenerative Plating | -6/Data Miner | Free Enh. Armored Leg | -6/Data Miner | Free Imp. Matter Compressor | -6/Data Miner | Free Enh. Force Rifle | -6/Data Miner | Free Shield Leg | -6/Data Miner | Free Adv. Power Amplifier | -6/Data Miner | Free Railgun | -6/Data Miner | Free Robot Schematics ------------------ G-50 Soldier | -6/Data Miner | Free B-60 Warrior | -6/Data Miner | Free S-27 Virus | -6/Data Miner | Free B-48 Gladiator | -6/Data Miner | Free Fabricated ------------ Nothing Repaired ---------- Nothing Alien Tech Used ----------------- None Achievements -------------- None Challenges ------------ None Game ------ Seed InterceptTerrainFilter Manual? 0 Play Time 00:33:33 Cumulative 387.1 hours Start 2025.06.29 @ 19:49:21 End 2025.06.29 @ 20:20:38 Sessions 1 Manual Loads 0 Difficulty Rogue Special Mode None Game No. 482 Rogue 482 Adventurer 0 Explorer 0 Win Type - Total 30 Types 14/1/9/1/1/1/0/1/1/1 Lore% 87 Gallery% 78 Achievement% 77 Wizard Run 0 Options --------- Layout 0 ASCII 0 Keyboard 0 Movement Numpad Keybinds 0 Fullscreen 1 Font 18/SmallcapsGlow Map View 76x50 Zoom Use 0% Tactical HUD 1 Map Filters NONE Filters NONE Steam 1 RUN: c2537fe6-ae90-4480-bf80-19d7a580666c